[Event "Late-Titled-Tuesday-Blitz-April-02-2024"]
[Site "Chess.com"]
[Date "2024.04.02"]
[Round "7"]
[White "ellennilssen"]
[Black "andrzej"]
[Result "1-0"]
[WhiteElo "2354"]
[BlackElo "2467"]
[TimeControl "180+1"]
[EndTime "15:14:00 PDT"]
[Termination "ellennilssen won by resignation"]

1. Nf3 {[%clk 0:03:00.9]} 1... d5 {[%clk 0:03:00]} 2. b3 {[%clk 0:02:59.7]} 2...
c5 {[%clk 0:02:59.8]} 3. e3 {[%clk 0:02:59.5]} 3... Nf6 {[%clk 0:02:59.4]} 4.
Bb2 {[%clk 0:02:59.6]} 4... g6 {[%clk 0:02:59.2]} 5. c4 {[%clk 0:02:56.7]} 5...
dxc4 {[%clk 0:02:59.3]} 6. bxc4 {[%clk 0:02:56.5]} 6... Bg7 {[%clk 0:02:56.6]}
7. Be2 {[%clk 0:02:57]} 7... O-O {[%clk 0:02:56.4]} 8. O-O {[%clk 0:02:57.3]}
8... b6 {[%clk 0:02:48.8]} 9. d4 {[%clk 0:02:55.5]} 9... cxd4 {[%clk 0:02:41.5]}
10. exd4 {[%clk 0:02:54.8]} 10... Bb7 {[%clk 0:02:41.9]} 11. Nc3 {[%clk
0:02:53.7]} 11... Nc6 {[%clk 0:02:39.1]} 12. d5 {[%clk 0:02:45]} 12... Na5
{[%clk 0:02:38.9]} 13. Rc1 {[%clk 0:02:37.1]} 13... Rc8 {[%clk 0:02:38.7]} 14.
Nb5 {[%clk 0:02:35.5]} 14... a6 {[%clk 0:02:33.2]} 15. Nbd4 {[%clk 0:02:35.4]}
15... Qd6 {[%clk 0:02:24.3]} 16. Qa4 {[%clk 0:02:30.5]} 16... Rfd8 {[%clk
0:02:20.7]} 17. Rfd1 {[%clk 0:02:27.9]} 17... Nd7 {[%clk 0:02:18.3]} 18. Ba3
{[%clk 0:02:23.8]} 18... Nc5 {[%clk 0:02:17.9]} 19. Qc2 {[%clk 0:02:23.3]} 19...
Qf4 {[%clk 0:02:12]} 20. Bb4 {[%clk 0:02:06.9]} 20... h5 {[%clk 0:01:41.2]} 21.
Qc3 {[%clk 0:01:49.4]} 21... e5 {[%clk 0:01:28.4]} 22. dxe6 {[%clk 0:01:48.7]}
22... Nxe6 {[%clk 0:01:28.3]} 23. Bxa5 {[%clk 0:01:35.3]} 23... Nxd4 {[%clk
0:01:09.6]} 24. Nxd4 {[%clk 0:01:32.5]} 24... Bxd4 {[%clk 0:01:09.6]} 25. Rxd4
{[%clk 0:01:21.7]} 25... Rxd4 {[%clk 0:01:09.2]} 26. Bxb6 {[%clk 0:01:22.4]}
26... Rd2 {[%clk 0:01:01.6]} 27. Be3 {[%clk 0:01:20.2]} 27... Qxe3 {[%clk
0:00:59.1]} 28. Qxe3 {[%clk 0:01:18.3]} 28... Rxa2 {[%clk 0:00:58.6]} 29. c5
{[%clk 0:01:17.8]} 29... Bc6 {[%clk 0:00:56.6]} 30. Bf3 {[%clk 0:01:15.6]} 30...
Re8 {[%clk 0:00:54.3]} 31. Bxc6 {[%clk 0:01:10.2]} 31... Rxe3 {[%clk 0:00:54.5]}
32. fxe3 {[%clk 0:01:11.1]} 32... a5 {[%clk 0:00:53.8]} 33. Bd5 {[%clk
0:01:11.1]} 1-0

[Event "Late-Titled-Tuesday-Blitz-April-02-2024"]
[Site "Chess.com"]
[Date "2024.04.02"]
[Round "7"]
[White "rcmz"]
[Black "cthake"]
[Result "1-0"]
[WhiteElo "2202"]
[BlackElo "1820"]
[TimeControl "180+1"]
[EndTime "15:14:02 PDT"]
[Termination "rcmz won by resignation"]

1. b4 {[%clk 0:03:00.9]} 1... e5 {[%clk 0:02:56.7]} 2. Bb2 {[%clk 0:02:59.5]}
2... Bxb4 {[%clk 0:02:48.3]} 3. Bxe5 {[%clk 0:02:58.1]} 3... Nf6 {[%clk
0:02:48.8]} 4. c4 {[%clk 0:02:57.5]} 4... d6 {[%clk 0:02:48.5]} 5. Bb2 {[%clk
0:02:56.7]} 5... Bd7 {[%clk 0:02:43.2]} 6. Nf3 {[%clk 0:02:56.3]} 6... O-O
{[%clk 0:02:42.4]} 7. e3 {[%clk 0:02:56.3]} 7... a5 {[%clk 0:02:31.5]} 8. a3
{[%clk 0:02:54.7]} 8... Bc5 {[%clk 0:02:31.7]} 9. Be2 {[%clk 0:02:52.5]} 9...
Nc6 {[%clk 0:02:20.9]} 10. O-O {[%clk 0:02:49.5]} 10... a4 {[%clk 0:02:10.7]}
11. d4 {[%clk 0:02:49.1]} 11... Bb6 {[%clk 0:02:10.2]} 12. Nbd2 {[%clk
0:02:46.2]} 12... Re8 {[%clk 0:02:06.9]} 13. Qc2 {[%clk 0:02:40.1]} 13... Bg4
{[%clk 0:01:57.1]} 14. Rfe1 {[%clk 0:02:39.4]} 14... d5 {[%clk 0:01:46.1]} 15.
cxd5 {[%clk 0:02:29.8]} 15... Nxd5 {[%clk 0:01:37.6]} 16. Bb5 {[%clk 0:02:27.7]}
16... Bd7 {[%clk 0:01:05.7]} 17. Bxc6 {[%clk 0:02:22]} 17... Bxc6 {[%clk
0:01:00.6]} 18. Ne5 {[%clk 0:02:21.7]} 18... Qf6 {[%clk 0:00:37.2]} 19. Nxc6
{[%clk 0:02:18.2]} 19... Qxc6 {[%clk 0:00:36.1]} 20. Qxc6 {[%clk 0:02:15.2]}
20... bxc6 {[%clk 0:00:36.3]} 21. Rec1 {[%clk 0:02:12]} 21... Re6 {[%clk
0:00:28.9]} 22. Nc4 {[%clk 0:02:09.6]} 22... Rae8 {[%clk 0:00:19.6]} 23. g3
{[%clk 0:02:09]} 23... f6 {[%clk 0:00:17.1]} 24. Rc2 {[%clk 0:02:05]} 24... h5
{[%clk 0:00:16.9]} 25. h4 {[%clk 0:02:03.3]} 25... Kh7 {[%clk 0:00:17]} 26. Rac1
{[%clk 0:02:02.1]} 26... g5 {[%clk 0:00:16.7]} 27. hxg5 {[%clk 0:02:00.6]} 27...
fxg5 {[%clk 0:00:16.9]} 28. Nxb6 {[%clk 0:02:00.6]} 28... cxb6 {[%clk
0:00:14.3]} 29. Rxc6 {[%clk 0:02:00.3]} 29... Rxc6 {[%clk 0:00:12.6]} 30. Rxc6
{[%clk 0:01:59.5]} 30... Kg7 {[%clk 0:00:10.8]} 31. Rd6 {[%clk 0:01:55.5]} 31...
Nf6 {[%clk 0:00:08.2]} 32. d5 {[%clk 0:01:52.5]} 32... Rb8 {[%clk 0:00:07]} 1-0

[Event "Late-Titled-Tuesday-Blitz-April-02-2024"]
[Site "Chess.com"]
[Date "2024.04.02"]
[Round "7"]
[White "Balla_Tamas"]
[Black "Franmu14"]
[Result "0-1"]
[WhiteElo "2509"]
[BlackElo "2677"]
[TimeControl "180+1"]
[EndTime "15:14:13 PDT"]
[Termination "Franmu14 won by resignation"]

1. Nf3 {[%clk 0:03:00.9]} 1... d5 {[%clk 0:02:57]} 2. b3 {[%clk 0:03:01.1]} 2...
Nf6 {[%clk 0:02:56.6]} 3. Bb2 {[%clk 0:03:01.6]} 3... e6 {[%clk 0:02:57.3]} 4.
e3 {[%clk 0:03:02.1]} 4... Be7 {[%clk 0:02:57.9]} 5. c4 {[%clk 0:03:02.4]} 5...
O-O {[%clk 0:02:58.5]} 6. Nc3 {[%clk 0:03:02.8]} 6... c5 {[%clk 0:02:59.2]} 7.
cxd5 {[%clk 0:03:02]} 7... exd5 {[%clk 0:02:59]} 8. d4 {[%clk 0:03:02.4]} 8...
b6 {[%clk 0:02:59.5]} 9. Be2 {[%clk 0:03:01.3]} 9... Bb7 {[%clk 0:02:58.5]} 10.
O-O {[%clk 0:02:59.5]} 10... Re8 {[%clk 0:02:42.7]} 11. Rc1 {[%clk 0:02:58.9]}
11... Nbd7 {[%clk 0:02:42.7]} 12. dxc5 {[%clk 0:02:58.6]} 12... bxc5 {[%clk
0:02:42.4]} 13. Na4 {[%clk 0:02:58]} 13... Rc8 {[%clk 0:02:39.6]} 14. Qd2 {[%clk
0:02:55.8]} 14... Bf8 {[%clk 0:02:37]} 15. Rfd1 {[%clk 0:02:55.7]} 15... a6
{[%clk 0:02:35.9]} 16. h3 {[%clk 0:02:47.1]} 16... Qe7 {[%clk 0:02:35.5]} 17.
Nh4 {[%clk 0:02:33.1]} 17... Ne4 {[%clk 0:02:33.7]} 18. Nf5 {[%clk 0:02:26.1]}
18... Qg5 {[%clk 0:02:24.1]} 19. Qa5 {[%clk 0:01:30.5]} 19... Qxf5 {[%clk
0:02:22.5]} 20. Bf3 {[%clk 0:01:31.2]} 20... h5 {[%clk 0:02:00.9]} 21. Nc3
{[%clk 0:01:16]} 21... Ne5 {[%clk 0:01:44.5]} 22. Bxe4 {[%clk 0:01:00.6]} 22...
dxe4 {[%clk 0:01:43.1]} 23. Ne2 {[%clk 0:00:58]} 23... Nd3 {[%clk 0:01:41.2]}
24. Rc2 {[%clk 0:00:41.3]} 24... Qxf2+ {[%clk 0:01:39.3]} 25. Kh2 {[%clk
0:00:39.9]} 25... Qxe3 {[%clk 0:01:28.3]} 26. Qb6 {[%clk 0:00:35.5]} 26... Bc6
{[%clk 0:01:24.4]} 27. Rf1 {[%clk 0:00:20.3]} 27... Bd6+ {[%clk 0:01:22.7]} 28.
Kh1 {[%clk 0:00:20.2]} 28... Nf2+ {[%clk 0:01:22.4]} 29. Rxf2 {[%clk 0:00:20.4]}
29... Qxf2 {[%clk 0:01:23.3]} 0-1

[Event "Late-Titled-Tuesday-Blitz-April-02-2024"]
[Site "Chess.com"]
[Date "2024.04.02"]
[Round "7"]
[White "Charodej1"]
[Black "giovannibrandao7"]
[Result "0-1"]
[WhiteElo "2368"]
[BlackElo "2184"]
[TimeControl "180+1"]
[EndTime "15:14:14 PDT"]
[Termination "giovannibrandao7 won by resignation"]

1. d4 {[%clk 0:03:00.9]} 1... Nf6 {[%clk 0:02:58.5]} 2. Nf3 {[%clk 0:02:46.1]}
2... g6 {[%clk 0:02:55.5]} 3. Bf4 {[%clk 0:02:39.4]} 3... Bg7 {[%clk 0:02:56.4]}
4. Nbd2 {[%clk 0:02:39.1]} 4... d5 {[%clk 0:02:56.4]} 5. h3 {[%clk 0:02:38.2]}
5... O-O {[%clk 0:02:55.7]} 6. c3 {[%clk 0:02:38.3]} 6... c5 {[%clk 0:02:47.2]}
7. e3 {[%clk 0:02:37.8]} 7... Nc6 {[%clk 0:02:46.8]} 8. Be2 {[%clk 0:02:36.7]}
8... Re8 {[%clk 0:02:46.4]} 9. Ne5 {[%clk 0:02:34.6]} 9... cxd4 {[%clk
0:02:45.4]} 10. exd4 {[%clk 0:02:33.7]} 10... Nd7 {[%clk 0:02:45.5]} 11. Nxd7
{[%clk 0:02:26.6]} 11... Bxd7 {[%clk 0:02:46.4]} 12. O-O {[%clk 0:02:25.6]}
12... e5 {[%clk 0:02:33.7]} 13. dxe5 {[%clk 0:02:25.1]} 13... Nxe5 {[%clk
0:02:34]} 14. Nf3 {[%clk 0:02:16.5]} 14... Bc6 {[%clk 0:02:23.6]} 15. Nd4 {[%clk
0:02:15.1]} 15... Nc4 {[%clk 0:02:14.7]} 16. Bxc4 {[%clk 0:02:07]} 16... dxc4
{[%clk 0:02:13.9]} 17. Nxc6 {[%clk 0:02:07.1]} 17... bxc6 {[%clk 0:02:14]} 18.
Qa4 {[%clk 0:02:00.6]} 18... Qb6 {[%clk 0:02:04.2]} 19. Qxc4 {[%clk 0:01:49.3]}
19... Qxb2 {[%clk 0:02:01.8]} 20. Rfc1 {[%clk 0:01:47.4]} 20... Qb5 {[%clk
0:01:46.2]} 21. Qb3 {[%clk 0:01:39.8]} 21... Re4 {[%clk 0:01:41.7]} 22. Be3
{[%clk 0:01:36.7]} 22... Rc4 {[%clk 0:01:39.7]} 23. Rab1 {[%clk 0:01:28.8]}
23... Qxb3 {[%clk 0:01:19.7]} 24. Rxb3 {[%clk 0:01:04.2]} 24... a5 {[%clk
0:01:18.8]} 25. Ra3 {[%clk 0:00:57.4]} 25... a4 {[%clk 0:01:15.1]} 26. Rb1
{[%clk 0:00:51.6]} 26... Bf8 {[%clk 0:01:13.5]} 27. Rb4 {[%clk 0:00:48.2]} 27...
Bxb4 {[%clk 0:01:07.4]} 28. cxb4 {[%clk 0:00:45.6]} 28... Rxb4 {[%clk
0:01:08.3]} 29. Rc3 {[%clk 0:00:42.7]} 29... Rb2 {[%clk 0:01:07.9]} 0-1

[Event "Late-Titled-Tuesday-Blitz-April-02-2024"]
[Site "Chess.com"]
[Date "2024.04.02"]
[Round "7"]
[White "javierfreilemartin"]
[Black "kikoveiga"]
[Result "1-0"]
[WhiteElo "2311"]
[BlackElo "2469"]
[TimeControl "180+1"]
[EndTime "15:14:29 PDT"]
[Termination "javierfreilemartin won by resignation"]

1. c4 {[%clk 0:03:00.9]} 1... e5 {[%clk 0:02:59.7]} 2. Nc3 {[%clk 0:03:00.1]}
2... Nf6 {[%clk 0:02:59.8]} 3. Nf3 {[%clk 0:02:59.9]} 3... Nc6 {[%clk
0:02:59.4]} 4. a3 {[%clk 0:02:59.8]} 4... a5 {[%clk 0:02:57.2]} 5. e3 {[%clk
0:02:59.7]} 5... d5 {[%clk 0:02:49.9]} 6. cxd5 {[%clk 0:02:58.1]} 6... Nxd5
{[%clk 0:02:50]} 7. d3 {[%clk 0:02:56.6]} 7... Be6 {[%clk 0:02:43.3]} 8. Bd2
{[%clk 0:02:56.4]} 8... Be7 {[%clk 0:02:37.1]} 9. Be2 {[%clk 0:02:56.3]} 9...
O-O {[%clk 0:02:37.1]} 10. O-O {[%clk 0:02:56.2]} 10... Qd7 {[%clk 0:02:36.7]}
11. Qb1 {[%clk 0:02:55.9]} 11... Kh8 {[%clk 0:02:32.5]} 12. Rc1 {[%clk 0:02:55]}
12... f5 {[%clk 0:02:31.3]} 13. Be1 {[%clk 0:02:52]} 13... Rae8 {[%clk
0:02:25.1]} 14. b4 {[%clk 0:02:50.2]} 14... axb4 {[%clk 0:02:24.7]} 15. Nxd5
{[%clk 0:02:47.1]} 15... Bxd5 {[%clk 0:02:17.8]} 16. axb4 {[%clk 0:02:46.8]}
16... e4 {[%clk 0:02:13.5]} 17. dxe4 {[%clk 0:02:40]} 17... Bxe4 {[%clk
0:02:12.5]} 18. Qb2 {[%clk 0:02:27.9]} 18... Bf6 {[%clk 0:02:10.8]} 19. Bc3
{[%clk 0:02:26.2]} 19... Bxc3 {[%clk 0:01:38.5]} 20. Qxc3 {[%clk 0:02:25.6]}
20... Re7 {[%clk 0:01:09.8]} 21. b5 {[%clk 0:02:22.5]} 21... Nd8 {[%clk
0:01:09.6]} 22. Ra8 {[%clk 0:02:07.8]} 22... Rfe8 {[%clk 0:01:05.1]} 23. Nd4
{[%clk 0:01:56.6]} 23... c6 {[%clk 0:00:43.9]} 24. Bh5 {[%clk 0:01:43.1]} 24...
Rg8 {[%clk 0:00:30.5]} 25. h3 {[%clk 0:01:16.2]} 25... cxb5 {[%clk 0:00:17.4]}
26. Qc5 {[%clk 0:01:15]} 26... Qc7 {[%clk 0:00:11.8]} 27. Qxc7 {[%clk
0:01:12.7]} 1-0

[Event "Late-Titled-Tuesday-Blitz-April-02-2024"]
[Site "Chess.com"]
[Date "2024.04.02"]
[Round "7"]
[White "AllStarShark"]
[Black "Darkdefense15"]
[Result "1/2-1/2"]
[WhiteElo "2524"]
[BlackElo "2389"]
[TimeControl "180+1"]
[EndTime "15:14:34 PDT"]
[Termination "Game drawn by agreement"]

1. c4 {[%clk 0:03:00.9]} 1... Nf6 {[%clk 0:02:59.2]} 2. g3 {[%clk 0:03:00]} 2...
e6 {[%clk 0:02:57.9]} 3. Bg2 {[%clk 0:03:00.5]} 3... d5 {[%clk 0:02:58]} 4. Nf3
{[%clk 0:03:00.6]} 4... Be7 {[%clk 0:02:57.9]} 5. O-O {[%clk 0:03:00.5]} 5...
O-O {[%clk 0:02:58.4]} 6. b3 {[%clk 0:03:00.4]} 6... c5 {[%clk 0:02:53.8]} 7.
cxd5 {[%clk 0:02:56.3]} 7... Nxd5 {[%clk 0:02:52.7]} 8. Bb2 {[%clk 0:02:55.9]}
8... Nc6 {[%clk 0:02:52.3]} 9. Nc3 {[%clk 0:02:55.6]} 9... Bf6 {[%clk
0:02:50.2]} 10. Qc1 {[%clk 0:02:54.7]} 10... b6 {[%clk 0:02:47.5]} 11. Rd1
{[%clk 0:02:31.4]} 11... Ba6 {[%clk 0:02:36.4]} 12. d3 {[%clk 0:02:22.9]} 12...
Rc8 {[%clk 0:02:21.9]} 13. Rb1 {[%clk 0:02:17.8]} 13... Qe7 {[%clk 0:02:02.6]}
14. Qd2 {[%clk 0:02:03.5]} 14... Nxc3 {[%clk 0:01:45.7]} 15. Bxc3 {[%clk
0:02:04.4]} 15... Bxc3 {[%clk 0:01:45.6]} 16. Qxc3 {[%clk 0:02:05.3]} 16... Bb7
{[%clk 0:01:46.3]} 17. Rbc1 {[%clk 0:01:47.6]} 17... Rfd8 {[%clk 0:01:41.7]} 18.
Qb2 {[%clk 0:01:36.8]} 18... h6 {[%clk 0:01:39.9]} 19. Rd2 {[%clk 0:01:18.9]}
19... Nd4 {[%clk 0:01:26.4]} 20. Nxd4 {[%clk 0:01:16.8]} 20... Rxd4 {[%clk
0:01:25]} 21. Bxb7 {[%clk 0:01:09.8]} 21... Qxb7 {[%clk 0:01:25.9]} 22. Rc4
{[%clk 0:01:09.4]} 22... Rcd8 {[%clk 0:01:19]} 23. Rdc2 {[%clk 0:01:05.5]} 23...
h5 {[%clk 0:01:07.9]} 24. Rxd4 {[%clk 0:01:05.1]} 24... Rxd4 {[%clk 0:01:08.2]}
25. Rc4 {[%clk 0:01:05.1]} 25... Rxc4 {[%clk 0:00:57.1]} 26. bxc4 {[%clk
0:01:03.8]} 26... Qa6 {[%clk 0:00:53]} 27. Kg2 {[%clk 0:00:54.1]} 27... g6
{[%clk 0:00:50.8]} 28. h4 {[%clk 0:00:54]} 28... Qa4 {[%clk 0:00:50.5]} 29. Qb3
{[%clk 0:00:46]} 29... Qc6+ {[%clk 0:00:48.1]} 30. f3 {[%clk 0:00:38.8]} 30...
Qd7 {[%clk 0:00:45.3]} 1/2-1/2

[Event "Late-Titled-Tuesday-Blitz-April-02-2024"]
[Site "Chess.com"]
[Date "2024.04.02"]
[Round "7"]
[White "PawnEatingZombie"]
[Black "fmcabralis"]
[Result "1-0"]
[WhiteElo "2195"]
[BlackElo "2386"]
[TimeControl "180+1"]
[EndTime "15:14:39 PDT"]
[Termination "PawnEatingZombie won by resignation"]

1. e4 {[%clk 0:03:00.9]} 1... c5 {[%clk 0:03:00]} 2. c3 {[%clk 0:03:00.7]} 2...
Nf6 {[%clk 0:02:55.3]} 3. e5 {[%clk 0:03:00.5]} 3... Nd5 {[%clk 0:02:54.6]} 4.
Nf3 {[%clk 0:03:01]} 4... e6 {[%clk 0:02:54.3]} 5. d4 {[%clk 0:02:58.3]} 5...
cxd4 {[%clk 0:02:42.5]} 6. cxd4 {[%clk 0:02:59.2]} 6... d6 {[%clk 0:02:42.3]} 7.
Bc4 {[%clk 0:02:57.7]} 7... Nc6 {[%clk 0:02:41.7]} 8. O-O {[%clk 0:02:57.5]}
8... Be7 {[%clk 0:02:41.7]} 9. Qe2 {[%clk 0:02:58]} 9... O-O {[%clk 0:02:41.2]}
10. Rd1 {[%clk 0:02:58.5]} 10... Bd7 {[%clk 0:02:40.4]} 11. Nc3 {[%clk 0:02:52]}
11... Nxc3 {[%clk 0:02:39]} 12. bxc3 {[%clk 0:02:52.9]} 12... dxe5 {[%clk
0:02:34.6]} 13. dxe5 {[%clk 0:02:53.8]} 13... Qc7 {[%clk 0:02:28]} 14. Qe4
{[%clk 0:02:49.9]} 14... Rfd8 {[%clk 0:02:18.2]} 15. Bd3 {[%clk 0:02:49.6]}
15... g6 {[%clk 0:02:18.1]} 16. h4 {[%clk 0:02:41.9]} 16... Be8 {[%clk
0:02:02.5]} 17. h5 {[%clk 0:02:30.3]} 17... Rd5 {[%clk 0:02:00.2]} 18. Bf4
{[%clk 0:02:22.2]} 18... Rad8 {[%clk 0:01:58.6]} 19. c4 {[%clk 0:02:09.6]} 19...
R5d7 {[%clk 0:01:44.4]} 20. hxg6 {[%clk 0:01:58.1]} 20... hxg6 {[%clk
0:01:45.3]} 21. g3 {[%clk 0:01:16.9]} 21... Nb4 {[%clk 0:01:37.5]} 22. Be2
{[%clk 0:01:08.8]} 22... Rxd1+ {[%clk 0:01:35.2]} 23. Rxd1 {[%clk 0:01:07.9]}
23... Rxd1+ {[%clk 0:01:35.2]} 24. Bxd1 {[%clk 0:01:08.8]} 24... Nxa2 {[%clk
0:01:29.1]} 25. Bg5 {[%clk 0:00:42.3]} 25... Nc3 {[%clk 0:01:09.2]} 26. Qh4
{[%clk 0:00:38.5]} 26... Bf8 {[%clk 0:01:09]} 27. Bf6 {[%clk 0:00:25.7]} 27...
Bg7 {[%clk 0:01:09]} 28. Ng5 {[%clk 0:00:25.4]} 28... Kf8 {[%clk 0:00:49.4]} 29.
Qh7 {[%clk 0:00:21.1]} 1-0

[Event "Late-Titled-Tuesday-Blitz-April-02-2024"]
[Site "Chess.com"]
[Date "2024.04.02"]
[Round "7"]
[White "Koksal06"]
[Black "Sanan_Sjugirov"]
[Result "0-1"]
[WhiteElo "2648"]
[BlackElo "2959"]
[TimeControl "180+1"]
[EndTime "15:14:41 PDT"]
[Termination "Sanan_Sjugirov won by resignation"]

1. c4 {[%clk 0:02:58.9]} 1... e6 {[%clk 0:02:58.9]} 2. d4 {[%clk 0:02:58.2]}
2... d5 {[%clk 0:02:59.5]} 3. Nc3 {[%clk 0:02:58.2]} 3... Nf6 {[%clk 0:03:00]}
4. Nf3 {[%clk 0:02:58.6]} 4... c6 {[%clk 0:02:59.8]} 5. e3 {[%clk 0:02:56.7]}
5... Nbd7 {[%clk 0:02:59.8]} 6. Bd3 {[%clk 0:02:51.9]} 6... dxc4 {[%clk
0:02:59.7]} 7. Bxc4 {[%clk 0:02:52.8]} 7... b5 {[%clk 0:03:00.3]} 8. Be2 {[%clk
0:02:53.1]} 8... Bb7 {[%clk 0:02:57.9]} 9. O-O {[%clk 0:02:53.5]} 9... Be7
{[%clk 0:02:55.2]} 10. b3 {[%clk 0:02:51.7]} 10... a6 {[%clk 0:02:54.3]} 11. Bb2
{[%clk 0:02:51.8]} 11... O-O {[%clk 0:02:49.1]} 12. Ne5 {[%clk 0:02:43]} 12...
c5 {[%clk 0:02:44.9]} 13. Nxd7 {[%clk 0:02:42.8]} 13... Nxd7 {[%clk 0:02:43.9]}
14. dxc5 {[%clk 0:01:52.8]} 14... Nxc5 {[%clk 0:02:39.3]} 15. b4 {[%clk
0:01:50.4]} 15... Nd7 {[%clk 0:02:38]} 16. a3 {[%clk 0:01:48.9]} 16... Nb6
{[%clk 0:02:37.7]} 17. Qxd8 {[%clk 0:01:31.5]} 17... Rfxd8 {[%clk 0:02:38.6]}
18. Rfd1 {[%clk 0:01:31.9]} 18... Rdc8 {[%clk 0:02:36.5]} 19. Rac1 {[%clk
0:01:20.2]} 19... Bf6 {[%clk 0:02:34.4]} 20. Rd2 {[%clk 0:00:37.3]} 20... Rd8
{[%clk 0:02:06]} 21. Rdc2 {[%clk 0:00:27.3]} 21... h6 {[%clk 0:02:01.3]} 22. f3
{[%clk 0:00:21.3]} 22... Rd7 {[%clk 0:01:55.5]} 23. Kf2 {[%clk 0:00:20.2]} 23...
Rad8 {[%clk 0:01:56]} 24. Ke1 {[%clk 0:00:11.7]} 24... Bh4+ {[%clk 0:01:50.6]}
25. g3 {[%clk 0:00:11.6]} 25... Bg5 {[%clk 0:01:50.8]} 26. f4 {[%clk 0:00:11.4]}
26... Bf6 {[%clk 0:01:50.9]} 27. Rd1 {[%clk 0:00:11.8]} 27... Rxd1+ {[%clk
0:01:46.6]} 28. Nxd1 {[%clk 0:00:12.7]} 28... Bxb2 {[%clk 0:01:41.9]} 29. Nxb2
{[%clk 0:00:12]} 29... Be4 {[%clk 0:01:40.8]} 30. Rc3 {[%clk 0:00:12.3]} 30...
Nd5 {[%clk 0:01:40.5]} 31. Rc6 {[%clk 0:00:10.5]} 31... Nxb4 {[%clk 0:01:39.1]}
32. Rc7 {[%clk 0:00:08.3]} 32... Nd5 {[%clk 0:01:39.3]} 33. Ra7 {[%clk
0:00:08.1]} 33... Nxe3 {[%clk 0:01:38.9]} 34. Rxa6 {[%clk 0:00:08.7]} 34... Nc2+
{[%clk 0:01:37.5]} 35. Kf2 {[%clk 0:00:09.2]} 35... Rd2 {[%clk 0:01:37.3]} 36.
Ra7 {[%clk 0:00:06.7]} 36... Nd4 {[%clk 0:01:33.5]} 37. Ke3 {[%clk 0:00:07.1]}
37... Rxb2 {[%clk 0:01:34]} 38. Kxd4 {[%clk 0:00:07.4]} 38... Rxe2 {[%clk
0:01:34]} 39. Rb7 {[%clk 0:00:07.2]} 39... Bxb7 {[%clk 0:01:32.8]} 0-1

[Event "Late-Titled-Tuesday-Blitz-April-02-2024"]
[Site "Chess.com"]
[Date "2024.04.02"]
[Round "7"]
[White "rhwr"]
[Black "SultaiC"]
[Result "0-1"]
[WhiteElo "2295"]
[BlackElo "2519"]
[TimeControl "180+1"]
[EndTime "15:14:51 PDT"]
[Termination "SultaiC won by resignation"]

1. e4 {[%clk 0:03:00.1]} 1... c5 {[%clk 0:02:54]} 2. Nf3 {[%clk 0:03:00]} 2...
d6 {[%clk 0:02:53]} 3. d4 {[%clk 0:03:00.6]} 3... cxd4 {[%clk 0:02:53.9]} 4.
Nxd4 {[%clk 0:03:01.1]} 4... Nf6 {[%clk 0:02:53]} 5. Nc3 {[%clk 0:03:01.8]} 5...
a6 {[%clk 0:02:53.2]} 6. Be2 {[%clk 0:03:02.3]} 6... e5 {[%clk 0:02:53.2]} 7.
Nb3 {[%clk 0:03:02.2]} 7... Be6 {[%clk 0:02:53.3]} 8. O-O {[%clk 0:03:02.8]}
8... Be7 {[%clk 0:02:53.7]} 9. Be3 {[%clk 0:03:03.1]} 9... O-O {[%clk
0:02:54.4]} 10. Qd2 {[%clk 0:03:03.1]} 10... Nc6 {[%clk 0:02:55.1]} 11. Rad1
{[%clk 0:03:02.3]} 11... Rc8 {[%clk 0:02:55.6]} 12. f4 {[%clk 0:03:01.7]} 12...
Bg4 {[%clk 0:02:50.1]} 13. h3 {[%clk 0:02:50.4]} 13... Bxe2 {[%clk 0:02:49]} 14.
Qxe2 {[%clk 0:02:51.3]} 14... Qc7 {[%clk 0:02:46]} 15. f5 {[%clk 0:02:46.1]}
15... h6 {[%clk 0:02:43.5]} 16. g4 {[%clk 0:02:44.3]} 16... b5 {[%clk
0:02:40.7]} 17. Rf2 {[%clk 0:02:42.7]} 17... b4 {[%clk 0:02:37.5]} 18. Nd5
{[%clk 0:02:42.2]} 18... Nxd5 {[%clk 0:02:37.5]} 19. Rxd5 {[%clk 0:02:42.7]}
19... a5 {[%clk 0:02:27.4]} 20. Rg2 {[%clk 0:02:25]} 20... a4 {[%clk 0:02:24.7]}
21. Nc1 {[%clk 0:02:24.7]} 21... Nd4 {[%clk 0:02:20.6]} 22. Bxd4 {[%clk
0:02:22.2]} 22... exd4 {[%clk 0:02:21.5]} 23. Nd3 {[%clk 0:02:14.7]} 23... Qc4
{[%clk 0:02:14]} 24. b3 {[%clk 0:02:04.8]} 24... axb3 {[%clk 0:02:11.1]} 25.
axb3 {[%clk 0:02:05.7]} 25... Qc3 {[%clk 0:02:11.4]} 26. Qd2 {[%clk 0:01:47.9]}
26... Qa1+ {[%clk 0:02:07.5]} 27. Kh2 {[%clk 0:01:46.1]} 27... Bg5 {[%clk
0:02:05]} 28. Qxb4 {[%clk 0:01:41.9]} 28... Rc3 {[%clk 0:02:01.6]} 29. Qxd4
{[%clk 0:01:37.2]} 29... Ra8 {[%clk 0:01:43.6]} 30. e5 {[%clk 0:01:21.3]} 30...
dxe5 {[%clk 0:01:32.9]} 31. Nxe5 {[%clk 0:01:05.2]} 31... Qe1 {[%clk 0:01:08.1]}
32. Qf2 {[%clk 0:00:49.1]} 32... Qe4 {[%clk 0:01:01.7]} 0-1

[Event "Late-Titled-Tuesday-Blitz-April-02-2024"]
[Site "Chess.com"]
[Date "2024.04.02"]
[Round "7"]
[White "HipsterChess22"]
[Black "simaopdias"]
[Result "0-1"]
[WhiteElo "2185"]
[BlackElo "2315"]
[TimeControl "180+1"]
[EndTime "15:14:51 PDT"]
[Termination "simaopdias won on time"]

1. d4 {[%clk 0:02:58.8]} 1... Nf6 {[%clk 0:02:59.5]} 2. Nc3 {[%clk 0:02:58.3]}
2... d5 {[%clk 0:02:59.4]} 3. Bf4 {[%clk 0:02:56.5]} 3... c6 {[%clk 0:02:59.2]}
4. e3 {[%clk 0:02:54.6]} 4... Bf5 {[%clk 0:02:59.8]} 5. Nf3 {[%clk 0:02:53.5]}
5... e6 {[%clk 0:03:00]} 6. Ne5 {[%clk 0:02:53.2]} 6... Bb4 {[%clk 0:02:57.4]}
7. g4 {[%clk 0:02:48]} 7... Be4 {[%clk 0:02:54.4]} 8. f3 {[%clk 0:02:43.9]} 8...
Bg6 {[%clk 0:02:53.8]} 9. h4 {[%clk 0:02:43.7]} 9... h5 {[%clk 0:02:46.4]} 10.
Nxg6 {[%clk 0:02:43]} 10... fxg6 {[%clk 0:02:47.3]} 11. g5 {[%clk 0:02:35.7]}
11... Ng8 {[%clk 0:02:41.7]} 12. Qd3 {[%clk 0:02:31.4]} 12... Ne7 {[%clk
0:02:42.1]} 13. Bh3 {[%clk 0:02:26.4]} 13... Qd7 {[%clk 0:02:38.1]} 14. Be5
{[%clk 0:02:19.5]} 14... O-O {[%clk 0:02:37.5]} 15. e4 {[%clk 0:02:03.6]} 15...
Bd6 {[%clk 0:02:19]} 16. O-O-O {[%clk 0:01:57.6]} 16... Bxe5 {[%clk 0:02:17.9]}
17. dxe5 {[%clk 0:01:57.4]} 17... Na6 {[%clk 0:02:13.1]} 18. exd5 {[%clk
0:01:53.4]} 18... cxd5 {[%clk 0:02:11]} 19. Nxd5 {[%clk 0:01:18.9]} 19... Nxd5
{[%clk 0:02:08.5]} 20. Qxg6 {[%clk 0:01:18.2]} 20... Nc5 {[%clk 0:01:56.1]} 21.
f4 {[%clk 0:00:48]} 21... Nxf4 {[%clk 0:01:54.2]} 22. Rxd7 {[%clk 0:00:39.5]}
22... Nxg6 {[%clk 0:01:53.5]} 23. Rd6 {[%clk 0:00:31.1]} 23... Nf4 {[%clk
0:01:49.7]} 24. Bf1 {[%clk 0:00:24.2]} 24... a5 {[%clk 0:01:42.7]} 25. Bc4
{[%clk 0:00:20.6]} 25... Rae8 {[%clk 0:01:21.7]} 26. a3 {[%clk 0:00:19]} 26...
Ne4 {[%clk 0:01:15.2]} 27. Rhd1 {[%clk 0:00:14.9]} 27... Nxd6 {[%clk 0:01:14.6]}
28. exd6 {[%clk 0:00:13.7]} 28... Kh7 {[%clk 0:01:10.2]} 0-1